Cogmind - Beta 17.1 @@@ ROGUE MODE // 2026.09.07 @ 12:53:00 Player: 7604 Result: Destroyed by YQ-H8M(R) with Subdweller Machine Gun Performance ------------- Evolutions (0) 0 Regions Visited (3) 600 Robots Destroyed (33) 165 Value Destroyed (722) 722 Prototype IDs (18) 360 Alien Tech Used (0) 0 Bonus (-42) -42 TOTAL SCORE: 1805 Bonus ------- Friendly Fire -42 Cogmind --------- Core Integrity 0/250 Matter 282/300 Energy 125/125 System Corruption 0% Temperature Cool (0) Movement Treading (240) Ox1 Location -10/Subcaves Parts ------- > --- POWER (1) -------- Light Ion Engine > --- PROPULSION (2) --- Light Treads Light Treads > --- UTILITY (2) ------ High-capacity Storage Unit Seismic Detector > --- WEAPON (2) ------- Battle Rifle Hammer > --- INVENTORY (20) --- Subdweller Power Source Light Treads Light Treads Light Treads Spiked Treads Improved Heat Sink Improved Terrain Scanner Seismic Detector Makeshift Light Armor Plating Makeshift Light Armor Plating Medium Laser Particle Gun Particle Gun Subdweller Machine Gun Battle Cannon Grenade Launcher Rocket Launcher Mining Laser Multitool Makeshift Spear Peak State ------------ > --- POWER ------------ Light Ion Engine > --- PROPULSION ------- Light Treads Light Treads > --- UTILITY ---------- High-capacity Storage Unit Makeshift Light Armor Plating > --- WEAPON ----------- Subdweller Laser Battle Rifle > --- INVENTORY -------- Subdweller Power Source Light Treads Light Treads Light Treads Spiked Treads Improved Heat Sink Improved Terrain Scanner Seismic Detector Seismic Detector Makeshift Light Armor Plating Medium Laser Particle Gun Particle Gun Subdweller Machine Gun Grenade Launcher Rocket Launcher Mining Laser Multitool Hammer [Rating: 15] Favorites ----------- Power Light Ion Engine Engine Light Ion Engine Propulsion Light Treads Treads Light Treads Utility High-capacity Storage Unit Device Seismic Detector Storage High-capacity Storage Unit Protection Makeshift Light Armor Plating Weapon Medium Laser Energy Gun Medium Laser Ballistic Gun Battle Rifle Launcher Rocket Launcher Impact Weapon Hammer Build | -11 -10 -10 -10 ------- Run | Yrd Mat Min Sub Slots Evolved . | . . . . Power . | . . . . Propulsion . | . . . . Utility . | . . . . Weapon . | . . . . Parts Attached 22 | 7 4 5 6 Power 3 | 1 . 2 . Engine 3 | 1 . 2 . Core . | . . . . Reactor . | . . . . Propulsion 4 | 2 . 1 1 Treads 4 | 2 . 1 1 Leg . | . . . . Wheel . | . . . . Hover . | . . . . Flight . | . . . . Utility 7 | 2 4 . 1 Device 4 | 1 3 . . Storage 2 | 1 1 . . Processor . | . . . . Hackware . | . . . . Protection 1 | . . . 1 Artifact . | . . . . Weapon 8 | 2 . 2 4 Energy Gun 4 | 2 . 1 1 Energy Cannon . | . . . . Ballistic Gun 1 | . . . 1 Ballistic Cannon . | . . . . Launcher 2 | . . 1 1 Special Weapon . | . . . . Impact Weapon 1 | . . . 1 Slashing Weapon . | . . . . Piercing Weapon . | . . . . Special Melee Weapon . | . . . . Unidentified Prototypes . | . . . . Parts Lost 6 | . . 3 3 Power 2 | . . 2 . Propulsion 1 | . . . 1 Utility 1 | . . . 1 Weapon 2 | . . 1 1 Highest Loss Streak 2 | . . 2 2 To Critical Strikes . | . . . . Average Backups 15 | 1 9 14 18 Power . | . 1 . . Propulsion 3 | . 2 4 4 Utility 3 | . 2 3 4 Weapon 7 | . 3 6 9 Tool/Special . | . . . . Unused Backups 15 | . . . 15 Power 1 | . . . 1 Propulsion 3 | . . . 3 Utility 2 | . . . 2 Weapon 8 | . . . 8 Tool/Special 1 | . . . 1 Average Slot Usage (%) 99 | . 100 99 99 Engine 13 | . 14 13 14 Treads 27 | . 28 28 27 Device 13 | . 14 14 13 Storage 14 | . 14 14 14 Energy Gun 20 | . 28 27 12 Ballistic Gun 3 | . . . 7 Impact Weapon 2 | . . . 6 Peak Build Rating 15 | 7 10 11 15 Average Rating 9 | 5 7 8 10 On Entrance 6 | . 7 8 10 Avg Prop Armor Cover (%) . | . . . . Naked Turns . | . . . . Heaviest Build 51 | 14 49 49 51 Greatest Support 40 | 40 40 40 40 Greatest Overweight (x) 1 | . 1 1 1 Average Overweight (x) . | . . 1 1 Largest Inventory Capacity 20 | 8 20 20 20 Average Capacity 19 | 7 17 20 20 Most Carried 20 | 4 13 17 20 Average Carried 15 | 1 9 14 18 Final Capacity 20 | 8 20 20 20 Final Carried 20 | 4 13 16 20 Class Distribution -------------------- 100% | Mutant Dominant Class ---------------- Mutant | -10/Materials Mutant | -10/Mines Mutant | -10/Subcaves Resources | -11 -10 -10 -10 ----------- Run | Yrd Mat Min Sub Matter Collected 796 | 270 70 200 256 Remotely . | . . . . Salvage Created 894 | 25 287 224 358 Parts 72 | 8 20 19 25 Haulers Intercepted . | . . . . Recyclers Shooed . | . . . . Parts Field Recycled . | . . . . Retrieved Matter . | . . . . Parts Self-Destructed 4 | . . . 4 Prevented . | . . . . Parts Restored . | . . . . Kills | -11 -10 -10 -10 ------- Run | Yrd Mat Min Sub Combat Hostiles Destroyed 27 | . 9 12 6 Guns 18 | . 9 4 5 AOE 9 | . . 8 1 Classes Destroyed 6 | 1 3 . 2 Tunneler 3 | 2 . 1 . Watcher 3 | . 3 . . Swarmer 15 | . 6 9 . Grunt 6 | . 3 3 . Artisan 2 | . . . 2 Subdweller 6 | . . . 6 Best Kill Streak 3 | 1 3 3 2 Combat Bots Only 3 | . 3 3 2 Max Kills in Single Turn 3 | 1 1 3 1 Gunslinging . | . . . . Exploded 3 | . . 3 1 Melee . | . . . . Uniques/NPCs Destroyed . | . . . . Combat | -11 -10 -10 -10 -------- Run | Yrd Mat Min Sub Hostile Shots Fired 90 | . 32 37 21 Missed 17 | . 8 5 4 Hits 73 | . 24 32 17 Projectile 73 | . 24 32 17 AOE 2 | . . . 2 Damage Taken 1024 | . 234 354 436 Core 253 | . 29 30 194 Absorbed by Shields . | . . . . Core Remaining (%) 100 | 100 . . . Volleys Fired 65 | 2 23 18 22 Largest 2 | 2 2 2 2 Hottest 115 | 90 90 115 90 Shots Fired 115 | 4 44 31 36 Gun 105 | 4 44 26 31 Cannon . | . . . . Launcher 10 | . . 5 5 Special . | . . . . Kinetic 12 | . . . 12 Thermal 93 | 4 44 26 19 Explosive 10 | . . 5 5 Electromagnetic . | . . . . Robot Hit Streak 24 | 2 7 8 24 Robot Miss Streak 4 | 1 3 1 4 Penetration Max . | . . . . Secondary Targets 3 | . 1 1 1 Max Gunslinging Chain 1 | . 1 1 1 Shots Hit Robots 70 | 2 25 18 25 Core Hits 52 | 2 16 17 17 Critical Kills . | . . . . Critical Parts Destroyed . | . . . . Critical Strikes 1 | . 1 . . Burn 1 | . 1 . . Melee Attacks 27 | . . . 27 Impact 27 | . . . 27 Slashing . | . . . . Piercing . | . . . . Sneak Attacks . | . . . . Combat Hostiles . | . . . . Follow-up Attacks . | . . . . Damage Inflicted 1620 | 25 293 616 686 Guns 970 | 25 293 222 430 Cannons . | . . . . Explosions 641 | . . 385 256 Melee . | . . . . Ramming 9 | . . 9 . Kinetic 149 | . . . 149 Thermal 821 | 25 293 222 281 Explosive 641 | . . 385 256 Electromagnetic . | . . . . Impact . | . . . . Slashing . | . . . . Piercing . | . . . . Highest Corruption . | . . . . Average Corruption . | . . . . Corruption Purged . | . . . . Corruption Blocked . | . . . . Overload Shots . | . . . . Overflow Damage . | . . . . Projectiles . | . . . . Explosions . | . . . . Melee . | . . . . Knockbacks . | . . . . Impact . | . . . . Kinetic . | . . . . Secondary . | . . . . Self-Inflicted Damage 30 | . . 30 . Shots 1 | . . 1 . Rammed 1 | . . 1 . Targets Rammed 1 | . . 1 . Kicked . | . . . . Crushed . | . . . . Highest Temperature 225 | 30 225 75 16 Average Temperature 46 | 18 70 24 7 Received Heat Transfer 171 | . 51 84 36 Siege Activations . | . . . . Martial Activations . | . . . . Shielding Activations . | . . . . Robots Disrupted . | . . . . Combat Hostiles . | . . . . Robots Corrupted . | . . . . Combat Hostiles . | . . . . Parts Fried . | . . . . Impact Corruptions . | . . . . Robots Melted . | . . . . Combat Hostiles . | . . . . Parts Melted 8 | . 4 2 2 Heat Transferred 1946 | 62 867 570 447 Parts Sabotaged . | . . . . Parts Stolen . | . . . . Parts Stripped . | . . . . Power Chain Reactions . | . . . . Alert | -11 -10 -10 -10 ------- Run | Yrd Mat Min Sub Maximum Alert Level . | . . . . Low Security (%) 100 | 100 100 100 . Level 1 . | . . . . Level 2 . | . . . . Level 3 . | . . . . Level 4 . | . . . . Level 5 . | . . . . High Security . | . . . . Max Security . | . . . . Peak Influence 150 | 5 115 150 . Initial . | . . . . Average 25 | . 31 25 . Influence Increases 632 | 10 257 365 . Destroy 0b10 Robot/C 420 | . 180 240 . Destroy 0b10 Robot/NC 30 | 10 15 5 . Destroy Leader 96 | . 46 50 . Successful Hack 16 | . 16 . . Disable Machine 30 | . . 30 . Destroy Structure 40 | . . 40 . Influence Decreases 632 | 10 256 366 . Entered New Map 1 | . . 1 . Time Decay 611 | 10 256 345 . Lost Part 20 | . . 20 . Squads Dispatched 1 | . 1 . . Investigation 1 | . 1 . . Extermination . | . . . . Reinforcement . | . . . . Assault . | . . . . Garrison . | . . . . Intercept . | . . . . Searches Triggered . | . . . . Construction Impeded . | . . . . Haulers Reinforced . | . . . . Active Scanning Responses . | . . . . Cargo Convoy Interrupts . | . . . . Stealth | -11 -10 -10 -10 --------- Run | Yrd Mat Min Sub Distress Signals 2 | . 2 . . Communications Jammed . | . . . . Distress Signals . | . . . . Times Spotted 34 | . 15 12 7 Peak Tracking Total 3 | . 3 3 2 Tactical Retreats . | . . . . Traps | -11 -10 -10 -10 ------- Run | Yrd Mat Min Sub Traps Triggered . | . . . . Indirectly . | . . . . Trap Hack Attempts . | . . . . Triggered . | . . . . Disarmed . | . . . . Reprogrammed . | . . . . Reused . | . . . . Traps Extracted . | . . . . Installed . | . . . . Triggered . | . . . . Machines | -11 -10 -10 -10 ---------- Run | Yrd Mat Min Sub Machines Disabled 3 | . . 2 1 Max in Single Turn 1 | . . 1 1 Machines Repaired . | . . . . Machines Dismantled . | . . . . Machines Sabotaged . | . . . . Overloaded Fab Kills . | . . . . Hacking | -11 -10 -10 -10 --------- Run | Yrd Mat Min Sub Machines Accessed 10 | . 7 1 2 Terminals 7 | . 6 1 . Fabricators . | . . . . Repair Stations . | . . . . Recycling Units 1 | . 1 . . Scanalyzers . | . . . . Garrison Access . | . . . . Total Hacks 34 | . 26 3 5 Successful 17 | . 11 1 5 Failed 16 | . 14 2 . Catastrophic 1 | . 1 . . Database Lockouts 1 | . 1 . . Manual 23 | . 20 3 . Terminals 26 | . 23 3 . Fabricators . | . . . . Repair Stations . | . . . . Recycling Units 3 | . 3 . . Scanalyzers . | . . . . Garrison Access . | . . . . Terminal Hacks 10 | . 4 1 5 Record 4 | . . . 4 Robot Analysis 1 | . 1 . . Prototype ID Bank 2 | . 1 1 . Locate Traps 1 | . 1 . . Registered Components 1 | . 1 . . Proto ID Catalog 1 | . . . 1 Fabricator Hacks . | . . . . Repair Station Hacks . | . . . . Recycling Unit Hacks . | . . . . Scanalyzer . | . . . . Garrison Access Hacks . | . . . . Unauthorized Hacks 7 | . 7 . . Terminals 7 | . 7 . . Botnet 1 | . 1 . . Operators 1 | . 1 . . Skim 5 | . 5 . . Fabricators . | . . . . Repair Stations . | . . . . Recycling Units . | . . . . Scanalyzers . | . . . . Garrison Access . | . . . . Data Cores Recovered . | . . . . Used . | . . . . Hacking Detections 8 | . 7 1 . Full Trace Events 1 | . 1 . . Feedback Events . | . . . . Feedback Blocked . | . . . . Robot Schematics Acquired . | . . . . Robots Built . | . . . . Authchips . | . . . . Time . | . . . . Total Robot Build Rating . | . . . . Part Schematics Acquired . | . . . . Parts Built . | . . . . Authchips . | . . . . Time . | . . . . Total Part Build Rating . | . . . . Part Studies Acquired . | . . . . Parts Repaired . | . . . . Time . | . . . . Parts Recycled . | . . . . Recycled Matter . | . . . . Retrieved Matter . | . . . . Retrieved Components . | . . . . Parts Scanalyzed . | . . . . Part Schematics Acquired . | . . . . Parts Damaged . | . . . . Bothacking | -11 -10 -10 -10 ------------ Run | Yrd Mat Min Sub Used RIF Installer . | . . . . Robots Hacked . | . . . . Non-combat . | . . . . Combat . | . . . . Robot Hacks Applied . | . . . . Relay Couplers Released . | . . . . Fabnet Peak Effective % . | . . . . Robots Rewired . | . . . . Allies Hacked . | . . . . Hacks Repelled . | . . . . Allies | -11 -10 -10 -10 -------- Run | Yrd Mat Min Sub Total Allies . | . . . . Largest Group . | . . . . Highest-Rated Group . | . . . . Highest-Rated Ally . | . . . . Total Orders . | . . . . Ally Attacks . | . . . . Total Damage . | . . . . Kills . | . . . . Allies Corrupted . | . . . . Allies Melted . | . . . . Intel | -11 -10 -10 -10 ------- Run | Yrd Mat Min Sub Active Infowar (turns) 5740 | 24 943 2125 2648 Terrain 44 | . 44 . . Seismic 5696 | 24 899 2125 2648 Robot Analysis Total 1 | . 1 . . Derelict Logs Recovered 3 | . . 2 1 Drone Launches . | . . . . Drone Recoveries . | . . . . Exploration | -11 -10 -10 -10 ------------- Run | Yrd Mat Min Sub Turns Passed 6139 | 161 1001 2191 2786 Spaces Moved 2426 | 91 413 859 1063 Core 5 | 5 . . . Treads 2421 | 86 413 859 1063 Legs . | . . . . Wheels . | . . . . Hover . | . . . . Flight . | . . . . Fastest Speed 50 | 50 160 240 240 Average Speed 232 | 153 213 240 240 Slowest Speed 240 | 160 240 240 240 Overloaded Moves . | . . . . Propulsion Burnouts . | . . . . Robots Hopped . | . . . . Potential Cave-ins . | . . . . Cave-ins Triggered . | . . . . Exploration Rate (%) 59 | 5 70 98 65 Regions Visited 3 Branch Regions 2 Pre-discovered Areas 2 | . 1 . 1 Known Exits Taken 1 | . . 1 . Unknown Exits Taken 2 | 1 1 . . Scrap Searched 3 | . . 2 1 Spaces Dug 9 | . . . 9 Terrain Destroyed 76 | . . 41 35 Melee 9 | . . . 9 Projectile . | . . . . AOE 67 | . . 41 26 Terrain Rammed . | . . . . Walls Destroyed . | . . . . Machines Disabled . | . . . . Actions | -11 -10 -10 -10 --------- Run | Yrd Mat Min Sub Total 2752 | 105 486 950 1211 Wait 153 | 2 34 51 66 Move 2423 | 90 412 858 1063 Hop . | . . . . Pick Up 29 | 4 9 6 10 Fast Attach 7 | 7 . . . Attach 6 | . . 3 3 Detach . | . . . . Swap 37 | . 7 13 17 Drop 4 | . 1 . 3 Fire 65 | 2 23 18 22 Melee 27 | . . . 27 Ram . | . . . . Kick . | . . . . Crush 1 | . . 1 . Escape Stasis . | . . . . Rewire . | . . . . Trap . | . . . . Miscellaneous . | . . . . Route ------- -11/Scrapyard -10/Materials (discovered 4 exits: *Mat x2 / *Min / Sub) -10/Mines (discovered 3 exits: *Mat x2 / *Sub) -10/Subcaves (discovered 3 exits: *Mat x2 / Rec) History --------- Turn | Location | Event 4 | -11/Scrapyard | Discovered new exit (range 16) 162 | -11/Scrapyard | Entered Materials 307 | -10/Materials | Discovered new exit (range 13) 315 | -10/Materials | Build established: Mutant 691 | -10/Materials | Discovered new exit (range 16) 891 | -10/Materials | Learned 2 Storage zone layouts 930 | -10/Materials | Central database locked down 943 | -10/Materials | Identified exit to Subcaves 1021 | -10/Materials | Learned 4 Subcaves zone layouts 1026 | -10/Materials | Discovered new exit (range 16) 1046 | -10/Materials | Identified exit to Materials 1079 | -10/Materials | Learned Recycling recycling unit intel 1122 | -10/Materials | Learned location of 2 exits from Subcaves 1163 | -10/Materials | Entered Mines 1253 | -10/Mines | Discovered exit to Materials (range 3) 1835 | -10/Mines | Learned Materials terminal intel 2188 | -10/Mines | Discovered exit to Materials (range 11) 2449 | -10/Mines | Received a Rocket Launcher from a helpful Derelict 2704 | -10/Mines | Learned Materials trap positions 3342 | -10/Mines | Discovered exit to Subcaves (range 6) 3354 | -10/Mines | Entered Subcaves 3355 | -10/Subcaves | Approached by a straggling Scientist 3355 | -10/Subcaves | Identified exit to Materials 3355 | -10/Subcaves | Identified exit to Recycling 3491 | -10/Subcaves | Shifting Twisted Machinery released Spk. Treads 3503 | -10/Subcaves | Shifting Twisted Machinery released Sub. Laser 3585 | -10/Subcaves | Visited Clippyterm 3593 | -10/Subcaves | Learned location of Extension (-4) 3593 | -10/Subcaves | Learned Research security intel 4082 | -10/Subcaves | Discovered exit to Materials (range 10) 4874 | -10/Subcaves | Core integrity fell below 50% 5496 | -10/Subcaves | Visited 4L-MR0's lab 5963 | -10/Subcaves | Core integrity fell below 20% 6023 | -10/Subcaves | Shifting Twisted Machinery released Sub. Monowheel 6025 | -10/Subcaves | Shifting Twisted Machinery released Mak. Spear 6061 | -10/Subcaves | Learned Materials security intel 6140 | -10/Subcaves | Destroyed by YQ-H8M(R) with Subdweller Machine Gun Last Messages --------------- come in here given their fear of my usual visitors." 05551_ 4L-MR0 mumbles: "Who knows where that last prototype ended up, probably tossed aside somewhere as if it were useless junk..." 05553_ 4L-MR0 cries out in pain. 05553_ 4L-MR0 destroyed. 05562_ Dropped Sml. Laser. 05563_ Acquired Multitool. 05960_ Sub. Laser destroyed. 05963_ K6-OC8(R) destroyed. 05966_ The unstable cave ceiling collapses. 05997_ Acquired 26 matter. 06001_ Acquired Battle Cannon. 06014_ Acquired 5 matter. Sub. Monowheel falls loose from the Twisted Machinery. Mak. Spear falls loose from the Twisted Machinery. 06036_ Acquired Mak. Spear. 06061_ Acquired derelict log, extracted data. Data stored: Materials security intel. 06096_ Subatomizers dissect the Disposable Heat Sink. 06123_ Subatomizers dissect the Disposable Heat Sink, destroying it. Map ----- +----------------------------------------------------+ | | | | | | | ?????????????????????????????????????????????????? | | ?????????????????????????????????????????????????? | | ?????????????????????????????????????????????????? | | ?????????????????????????????????????????????????? | | ?????????????????????????????????????????????????? | | ?????????????????????????????????????????????????? | | ?????????????????????????????????????????????????? | | ?????????????????????????????????????????????????? | | ?????????????????????????????????????????????????? | | ?????????????????????????????????????????????????? | | ?????????????????????????????????????????????????? | | ?????????????????????????????????????????????????? | | ?????????????????????????????????????????????????? | | ?????????????????????????????????????????????????? | | ??????????##??????????????????????????????????##?? | | ?????????## #####?????????#######?########???# #?? | | ?????????? #????????## # ### # ##? ### | | ???????????# < #????????# ## | | ???????????# ########## ? | | ???????????# "="# ## ## # ##### ?? | | ???????????#"" " ## "" ???? | | ???????????#""" ##### ## ### ## ""#????? | | ???????????# ## #???### @ # # # #????? | | ????????? ## ##?##; # #????? | | ??????? ## ###;; # #????? | | ?????? # #"" # ; * ##????? | | ????? ####" R % # "##???? | | ?????? ???## ## ; % ""##; #???? | | ??????## ? ?????#####"" *!"#" ; ; #???? | | ???????#?##?????????##"" ####;;;;;#### #???? | | ?????????????????????### "#?#######??## #???? | | ???????????????????????# ????????### #???? | | ???????????????????????# ? ?## #???? | | ??????????????????????? # ## # ##??? | | ??????????????????????? ####?# ### #### | | ??????????????????????? ##????# #?# | | ??????????????????????########## ### | | ?????????????????????#### # # ?## | | ????????????????????## ## ##?## | | ???????????????????## #?# ##?# % | | ???????????????????# ## #??# ### | | ???????????????????# ## #??# % | | ???????????????????# ## #?## | | ???????????????????# #### ### | | ???????????????????##???## ## ### | | ????????????????????????## ### *&& ##"" | | ?????????????????>?????## & =%###?## | +----------------------------------------------------+ Best States ------------- Heat Dissipation 39 Energy Generation 10 Energy Capacity 250 Matter Stores 300 Matter Capacity 300 Sight Range 16 Terrain Scan Range 16 Terrain Scan Density 10 Armor Coverage 100 Evasion (%) 40 Recoil Reduction 2 Item Schematics ----------------- None Robot Schematics ------------------ None Fabricated ------------ Nothing Repaired ---------- Nothing Studied --------- None Alien Tech Used ----------------- None Achievements -------------- None Challenges ------------ None Game ------ Seed HypercooledGravjetBarrier Manual? 0 Play Time 00:25:49 Cumulative 628.6 hours Start 2026.09.06 @ 12:16:30 End 2026.09.07 @ 12:53:00 Sessions 5 Manual Loads 0 Difficulty Rogue Special Mode None Game No. 328 Rogue 265 Adventurer 63 Explorer 0 Win Type - Total 13 Types 10/0/0/2/0/0/1/0/0/0 Lore% 91 Gallery% 81 Achievement% 59 Wizard Run 0 Options --------- Layout 0 ASCII 0 Keyboard 1 Movement Numpad Keybinds 0 Fullscreen 2 Font 18/Terminus Map View 76x50 Zoom Use 0% Tactical HUD 1 Map Filters NONE Filters NONE Steam 1 RUN: 185ce65e-3a07-49de-9020-4a8efbf95b51